fUST/lending_fUST_20250720
["ID","MTS","AMOUNT","RATE_DAILY","PERIOD"]
[373403132,1752987051639,-500.82510006,0.000234,2]
[373403133,1752987051650,-214.5637056,0.000234,7]
[373403134,1752987051663,-2298.4431684,0.00023417,9]
[373403135,1752987051673,-164.00619825,0.00023452,2]
[373403136,1752987051682,-151.0,0.0002349,2]
[373403137,1752987051691,-151.0,0.0002349,2]
[373403138,1752987051701,-153.0934634,0.0002349,2]
[373403139,1752987051711,-152.85067858,0.0002349,2]
[373403140,1752987051720,-151.0,0.0002349,2]
[373403141,1752987051731,-151.9286832,0.0002349,2]
[373403142,1752987051741,-151.0,0.0002349,2]
[373403143,1752987051750,-151.0,0.0002349,2]
[373403144,1752987051760,-199.0222745,0.0002349,2]
[373403145,1752987051769,-151.0,0.0002349,2]
[373403146,1752987051778,-216.75778794,0.0002349,2]
[373403147,1752987051788,-151.0,0.0002349,2]
[373403149,1752987051797,-151.0,0.0002349,2]
[373403151,1752987051808,-151.0,0.0002349,2]
[373403153,1752987051819,-151.0,0.0002349,2]
[373403154,1752987051829,-151.0,0.0002349,2]
[373403157,1752987051839,-151.0,0.0002349,2]
[373403158,1752987051849,-151.0,0.0002349,2]
[373403161,1752987051859,-198.28735585,0.0002349,2]
[373403163,1752987051868,-151.0,0.0002349,2]
[373403164,1752987051879,-153.67888106,0.0002349,2]
[373403166,1752987051888,-104269.20205287,0.000235,4]
[373403168,1752987051899,-151.0,0.000235,7]
[373403170,1752987051908,-152.103192,0.000235,7]
[373403172,1752987051917,-151.0,0.000235,7]
[373403174,1752987051926,-152.473751,0.000235,7]
[373403176,1752987051935,-429.4514592,0.00023507,2]
[373403178,1752987051945,-683.29,0.00023521,2]
[373403180,1752987051954,-1203.39,0.00023523,2]
[373403182,1752987051964,-460.0,0.00023523,2]
[373403184,1752987051974,-1010.28,0.00023523,2]
[373403186,1752987051984,-2038.2,0.00023523,2]
[373403188,1752987051994,-481.72,0.00023524,2]
[373403190,1752987052003,-751.53,0.00023524,2]
[373403192,1752987052013,-460.0,0.00023524,2]
[373403194,1752987052022,-1399.65,0.00023524,2]
[373403196,1752987052031,-508.56,0.00023538,6]
[373403198,1752987052041,-599.07,0.00023557,2]
[373403200,1752987052051,-1064.47,0.00023557,2]
[373403202,1752987052060,-703.19,0.00023557,2]
[373403204,1752987052069,-778.82,0.00023557,2]
[373403206,1752987052078,-200.0,0.00023561,2]
[373403208,1752987052088,-200.0,0.00023561,2]
[373403210,1752987052098,-200.0,0.00023561,2]
[373403212,1752987052107,-200.0,0.00023561,2]
[373403214,1752987052117,-200.0,0.00023561,2]
[373403216,1752987052126,-200.0,0.00023561,2]
[373403218,1752987052136,-200.0,0.00023561,2]
[373403220,1752987052145,-200.0,0.00023561,2]
[373403222,1752987052154,-200.0,0.00023561,2]
[373403224,1752987052163,-200.0,0.00023561,2]
[373403226,1752987052173,-289.26910109,0.00023561,2]
[373403228,1752987052182,-2214.38,0.0002357,7]
[373403230,1752987052191,-1488.94,0.00023625,2]
[373403232,1752987052200,-508.56,0.00023638,4]
[373403234,1752987052209,-2214.38,0.0002367,6]
[373403236,1752987052219,-2298.4431684,0.00023693,9]
[373403238,1752987052228,-508.64,0.00023738,5]
[373403240,1752987052237,-164.00619825,0.00023753,2]
[373403242,1752987052247,-151.0,0.00023764,2]
[373403244,1752987052257,-151.0,0.00023764,2]
[373403246,1752987052276,-275.28329557,0.00023764,2]
[373403248,1752987052291,-151.29090605,0.00023764,2]
[373403250,1752987052301,-151.0,0.00023764,2]
[373403252,1752987052310,-2214.46,0.0002377,5]
[373403254,1752987052319,-286.63396331,0.00023772,9]
[373403256,1752987052328,-159.8396335,0.00023781,2]
[373403258,1752987052338,-6939.29569008,0.00023788,2]
[373403260,1752987052347,-683.29,0.00023795,2]
[373403262,1752987052357,-1203.39,0.00023797,2]
[373403264,1752987052366,-460.0,0.00023797,2]
[373403266,1752987052375,-1010.28,0.00023797,2]
[373403268,1752987052385,-2038.2,0.00023797,2]
[373403270,1752987052394,-481.72,0.00023798,2]
[373403272,1752987052404,-751.53,0.00023798,2]
[373403274,1752987052414,-460.0,0.00023798,2]
[373403276,1752987052423,-1399.65,0.00023798,2]
[373403278,1752987052432,-500.0,0.0002381,9]
[373403280,1752987052441,-599.07,0.00023831,2]
[373403282,1752987052451,-1064.47,0.00023831,2]
[373403284,1752987052460,-703.19,0.00023831,2]
[373403286,1752987052471,-778.82,0.00023831,2]
[373403288,1752987052480,-160.0,0.00023841,3]
[373403290,1752987052490,-500.0,0.00023873,2]
[373403292,1752987052499,-159171.02367599,0.00023888,2]
[373403305,1752987052618,-95022.31717755,0.00023888,2]
[373403307,1752987052628,-151.0,0.00023888,7]
[373403309,1752987052638,-151.0,0.00023888,7]
[373403312,1752987052648,-151.929359,0.00023888,7]
[373403314,1752987052662,-151.0,0.00023888,7]
[373403316,1752987052671,-151.0,0.00023888,7]
[373403317,1752987052680,-153.977048,0.00023888,7]
[373403319,1752987052690,-151.0,0.00023888,7]
[373403321,1752987052699,-270.483214,0.00023888,7]
[373403323,1752987052709,-151.0,0.00023888,7]
[373403325,1752987052719,-151.0,0.00023888,7]
[373403327,1752987052728,-151.234386,0.00023888,7]
[373403329,1752987052738,-151.0,0.00023888,7]
[373403331,1752987052748,-151.0,0.00023888,7]
[373403333,1752987052758,-151.0,0.00023888,7]
[373403335,1752987052767,-151.968557,0.00023888,7]
[373403337,1752987052777,-151.0,0.00023888,7]
[373403339,1752987052788,-151.0,0.00023888,7]
[373403342,1752987052798,-152.379709,0.00023888,7]
[373403343,1752987052807,-151.0,0.00023888,7]
[373403346,1752987052818,-151.0,0.00023888,7]
[373403347,1752987052827,-154.021161,0.00023888,7]
[373403350,1752987052837,-151.0,0.00023888,7]
[373403352,1752987052847,-151.0,0.00023888,7]
[373403355,1752987052867,-1488.94,0.00023899,2]
[373403357,1752987052889,-6986.45,0.000239,7]
[373403359,1752987052899,-601.3282582,0.00023904,2]
[373403361,1752987052909,-206.0,0.0002393,2]
[373403363,1752987052919,-6939.29569004,0.00023958,2]
[373403365,1752987052929,-2298.4431684,0.00023969,10]
[373403367,1752987052939,-151.0,0.00023969,7]
[373403369,1752987052948,-154.312933,0.00023969,7]
[373403371,1752987052958,-13774.5911,0.00024,30]
[373403373,1752987052967,-151.0,0.00024,7]
[373403375,1752987052977,-268.732885,0.00024,7]
[373403377,1752987052988,-268.732885,0.00024,7]
[373403379,1752987052997,-151.0,0.00024,7]
[373403381,1752987053007,-160.0,0.00024,7]
[373403383,1752987053016,-328.531326,0.00024,7]
[373403384,1752987053026,-328.531326,0.00024,7]
[373403385,1752987053036,-152.537099,0.00024,7]
[373403386,1752987053045,-168.143092,0.00024,7]
[373403387,1752987053055,-168.143092,0.00024,7]
[373403388,1752987053064,-151.0,0.00024,7]
[373403389,1752987053074,-839.59621281,0.00024,7]
[373403390,1752987053084,-160.0,0.00024,7]
[373403391,1752987053093,-160.0,0.00024,7]
[373403392,1752987053103,-525.91036056,0.00024,7]
[373403393,1752987053113,-230.98123516,0.00024,7]
[373403394,1752987053122,-215.71456056,0.00024,7]
[373403395,1752987053132,-168.0,0.00024038,2]
[373403396,1752987053141,-151.0,0.00024038,2]
[373403397,1752987053152,-198.0,0.00024038,2]
[373403398,1752987053161,-429.4514592,0.00024055,2]
[373403399,1752987053172,-429.4514592,0.00024055,2]
[373403400,1752987053181,-152.031017,0.00024063,9]
[373403401,1752987053191,-683.38,0.00024069,2]
[373403402,1752987053201,-1203.56525061,0.00024071,2]
[373403403,1752987053211,-370.14894036,0.00024071,2]
[373403404,1752987053220,-1010.42810592,0.00024071,2]
[373403405,1752987053232,-2038.42107248,0.00024071,2]
[373403406,1752987053242,-481.74837965,0.00024072,2]
[373403407,1752987053252,-751.6748029,0.00024072,2]
[373403408,1752987053262,-195.85,0.00024072,2]
[373403409,1752987053272,-1399.87031518,0.00024072,2]
[373403410,1752987053282,-599.07,0.00024105,2]
[373403411,1752987053291,-1064.47,0.00024105,2]
[373403412,1752987053300,-703.19,0.00024105,2]
[373403413,1752987053311,-778.82,0.00024105,2]
[373403414,1752987053320,-1489.12711363,0.00024173,2]
[373403415,1752987053330,-174.0,0.00024177,2]
[373403416,1752987053343,-152.031017,0.00024184,9]
[373403417,1752987053354,-800.0,0.00024189,2]
[373403418,1752987053363,-174.0,0.00024202,2]
[373403419,1752987053373,-2298.4431684,0.00024245,10]
[373403420,1752987053382,-206.0,0.0002426,2]
[373403421,1752987053391,-4004.55,0.000243,7]
[373403422,1752987053402,-223.0315306,0.00024305,2]
[373403423,1752987053411,-800.0,0.00024322,2]
[373403424,1752987053422,-17016.33981566,0.00024342,9]
[373403425,1752987053499,-662.53029483,0.00020236,2]
[373403426,1752987053515,-78.70970517,0.00020236,2]
[373403427,1752987053525,-741.24,0.0002051,2]
[373403428,1752987053535,-741.24,0.00020784,2]
[373403429,1752987053545,-741.24,0.00021058,2]
[373403430,1752987053554,-1026.81125805,0.00024128,2]
[373403431,1752987053566,-2258.51601536,0.00024128,2]
[373403432,1752987053578,-2887.52924242,0.00024128,2]
[373403433,1752987053591,-766.43917421,0.00024128,2]
[373403434,1752987053601,-2005.89520711,0.00024342,9]
[373403435,1752987054082,-237.09,0.0001776,3]
[373403436,1752987054092,-461.4177261,0.00017768,2]
[373403437,1752987054102,-460.0,0.00017768,2]
[373403438,1752987054111,-460.0,0.00017768,2]
[373403439,1752987054120,-460.0,0.00017769,2]
[373403440,1752987054130,-460.0,0.00018042,2]
[373403441,1752987054139,-741.24,0.00021332,2]
[373403442,1752987054149,-741.24,0.00021606,2]
[373403443,1752987054159,-741.24,0.0002188,2]
[373403444,1752987054168,-741.24,0.00022154,2]
[373403445,1752987054179,-741.24,0.00022428,2]
[373403446,1752987054190,-741.24,0.00022702,2]
[373403447,1752987054199,-741.24,0.00022976,2]
[373403448,1752987054210,-429.4514592,0.00023096,2]
[373403449,1752987054220,-159.1867936,0.0002337,2]
[373403450,1752987054231,-6939.29569004,0.00024299,2]
[373403451,1752987054241,-360081.78497723,0.00024342,9]
[373403452,1752987054250,-15889.05,0.00024342,9]
[373403453,1752987054261,-94771.94,0.00024342,9]
[373403454,1752987054270,-174.0,0.00024371,2]
[373403455,1752987054280,-599.07,0.00024379,2]
[373403456,1752987054289,-1064.47,0.00024379,2]
[373403457,1752987054298,-703.19,0.00024379,2]
[373403458,1752987054308,-778.82,0.00024379,2]
[373403459,1752987054319,-379.12622,0.00024401,8]
[373403460,1752987054328,-152.031017,0.0002442,10]
[373403461,1752987054337,-174.0,0.00024423,2]
[373403462,1752987054346,-152.031017,0.00024475,4]
[373403463,1752987054356,-174.0,0.00024497,2]
[373403464,1752987054370,-749.93831801,0.000245,3]
[373403465,1752987054382,-1208.10059976,0.000245,2]
[373403466,1752987054392,-2298.4431684,0.00024521,11]
[373403467,1752987054401,-206.0,0.0002458,2]
[373403468,1752987054411,-174.0,0.00024588,2]
[373403469,1752987054421,-1276.19,0.000246,7]
[373403470,1752987054431,-62923.29,0.000246,2]
[373403471,1752987054440,-151.0,0.000246,7]
[373403472,1752987054450,-151.0,0.000246,7]
[373403473,1752987054460,-151.0,0.000246,7]
[373403474,1752987054470,-226.228263,0.000246,7]
[373403475,1752987054479,-226.228263,0.000246,7]
[373403476,1752987054488,-151.0,0.000246,7]
[373403477,1752987054498,-174.0,0.00024614,2]
[373403478,1752987054508,-3693.36474133,0.0002465,2]
[373403479,1752987054517,-381237.0669053,0.0002465,2]
[373403480,1752987054527,-501.97918257,0.0002465,2]
[373403481,1752987054536,-151.0,0.0002465,7]
[373403482,1752987054545,-151.0,0.0002465,7]
[373403483,1752987054554,-151.0,0.0002465,7]
[373403484,1752987054564,-151.0,0.0002465,7]
[373403485,1752987054573,-151.0,0.0002465,7]
[373403486,1752987054583,-151.0,0.0002465,7]
[373403487,1752987054592,-152.278939,0.0002465,7]
[373403488,1752987054602,-151.0,0.0002465,7]
[373403489,1752987054611,-151.0,0.0002465,7]
[373403490,1752987054621,-331.719303,0.0002465,7]
[373403491,1752987054631,-331.719303,0.0002465,7]
[373403492,1752987054640,-151.0,0.0002465,7]
[373403493,1752987054650,-268.732885,0.0002465,7]
[373403494,1752987054663,-268.732885,0.0002465,7]
[373403495,1752987054673,-151.0,0.0002465,7]
[373403496,1752987054683,-151.0,0.0002465,7]
[373403497,1752987054692,-151.0,0.0002465,7]
[373403498,1752987054702,-328.531326,0.0002465,7]
[373403499,1752987054712,-328.531326,0.0002465,7]
[373403500,1752987054722,-151.0,0.0002465,7]
[373403501,1752987054732,-168.143092,0.0002465,7]
[373403502,1752987054742,-168.143092,0.0002465,7]
[373403503,1752987054752,-152.685262,0.0002465,7]
[373403504,1752987054764,-151.0,0.0002465,7]
[373403505,1752987054775,-151.0,0.0002465,7]
[373403506,1752987054784,-151.0,0.0002465,7]
[373403507,1752987054793,-151.0,0.0002465,7]
[373403508,1752987054803,-151.0,0.0002465,7]
[373403509,1752987054812,-151.0,0.0002465,7]
[373403510,1752987054823,-151.0,0.0002465,7]
[373403511,1752987054833,-151.0,0.0002465,7]
[373403512,1752987054843,-151.0,0.0002465,7]
[373403513,1752987054852,-599.24,0.00024653,2]
[373403514,1752987054862,-1064.5177071,0.00024653,2]
[373403515,1752987054871,-703.38,0.00024653,2]
[373403516,1752987054880,-779.05380563,0.00024653,2]
[373403517,1752987054890,-300.0,0.00024657,2]
[373403518,1752987054900,-300.0,0.00024657,2]
[373403519,1752987054910,-300.0,0.00024657,2]
[373403520,1752987054919,-300.0,0.00024657,2]
[373403521,1752987054928,-300.0,0.00024657,2]
[373403522,1752987054937,-300.0,0.00024657,2]
[373403523,1752987054947,-300.0,0.00024657,2]
[373403524,1752987054956,-200.67615079,0.00024657,2]
[373403525,1752987054968,-99.32384921,0.00024657,2]
[373403526,1752987054977,-300.0,0.00024657,2]
[373403527,1752987054986,-300.0,0.00024657,2]
[373403528,1752987054996,-300.0,0.00024657,2]
[373403529,1752987055005,-300.0,0.00024657,2]
[373403530,1752987055016,-300.0,0.00024657,2]
[373403531,1752987055025,-187.67615079,0.00024657,2]
[373403532,1752987269396,-373.39,0.00017659,3]
[373403533,1752987269420,-589.08969264,0.00017667,2]
[373403534,1752987269444,-44037.52030736,0.00017669,2]
[373403538,1752988044081,159.852039,0.00013699,2]
[373403577,1752988232097,-184.00853,0.00016668,2]
[373403579,1752988232107,-311.16,0.00017659,3]
[373403581,1752988232116,-155.58,0.00017659,3]
[373403583,1752988232125,-466.77,0.00017659,3]
[373403585,1752988232134,-300.0,0.00017665,2]
[373403587,1752988232144,-1200.0,0.00017665,2]
[373403589,1752988232153,-460.0,0.00017666,2]
[373403591,1752988232162,-460.0,0.00017666,2]
[373403593,1752988232171,-460.0,0.00017666,2]
[373403595,1752988232180,-460.0,0.00017666,2]
[373403597,1752988232189,-460.0,0.00017666,2]
[373403599,1752988232199,-462.26756632,0.00017666,2]
[373403601,1752988232208,-460.0,0.00017666,2]
[373403603,1752988232218,-460.0,0.00017666,2]
[373403605,1752988232227,-460.0,0.00017666,2]
[373403606,1752988232236,-460.0,0.00017666,2]
[373403609,1752988232245,-460.0,0.00017666,2]
[373403610,1752988232255,-460.0,0.00017666,2]
[373403613,1752988232264,-460.0,0.00017666,2]
[373403615,1752988232273,-460.0,0.00017666,2]
[373403617,1752988232282,-460.0,0.00017666,2]
[373403618,1752988232296,-460.0,0.00017666,2]
[373403621,1752988232305,-460.0,0.00017666,2]
[373403622,1752988232314,-460.0,0.00017666,2]
[373403624,1752988232323,-460.0,0.00017666,2]
[373403626,1752988232332,-460.0,0.00017666,2]
[373403628,1752988232341,-460.0,0.00017666,2]
[373403630,1752988232351,-460.0,0.00017666,2]
[373403641,1752988232490,-460.0,0.00017666,2]
[373403642,1752988232500,-460.0,0.00017666,2]
[373403643,1752988232509,-460.0,0.00017666,2]
[373403644,1752988232519,-1000.0,0.00017666,2]
[373403645,1752988232528,-2275.52,0.00017666,2]
[373403646,1752988232538,-460.0,0.00017666,2]
[373403647,1752988232547,-461.22639106,0.00017666,2]
[373403648,1752988232556,-460.0,0.00017666,2]
[373403649,1752988232565,-460.0,0.00017666,2]
[373403650,1752988232575,-460.0,0.00017666,2]
[373403651,1752988232584,-422.01284583,0.00017666,2]
[373403652,1752988232593,-481.52580542,0.00017666,2]
[373403653,1752988232603,-460.0,0.00017666,2]
[373403654,1752988232613,-460.0,0.00017666,2]
[373403655,1752988232622,-460.0,0.00017666,2]
[373403656,1752988232631,-460.0,0.00017666,2]
[373403657,1752988232641,-460.0,0.00017666,2]
[373403658,1752988232650,-460.0,0.00017666,2]
[373403659,1752988232670,-460.0,0.00017666,2]
[373403660,1752988232680,-22357.02952838,0.00017666,2]
[373403661,1752988232690,-460.0,0.00017667,2]
[373403662,1752988232700,-460.0,0.00017667,2]
[373403663,1752988232709,-460.0,0.00017667,2]
[373403664,1752988232719,-460.0,0.00017667,2]
[373403665,1752988232730,-460.6514763,0.00017667,2]
[373403666,1752988232740,-460.0,0.00017667,2]
[373403667,1752988232750,-460.0,0.00017667,2]
[373403668,1752988232760,-460.0,0.00017667,2]
[373403669,1752988232769,-460.0,0.00017667,2]
[373403670,1752988232779,-479.41,0.00017667,2]
[373403671,1752988232789,-273.22346454,0.00017667,2]
[373403672,1752988232799,-460.0,0.00017667,2]
[373403673,1752988232808,-460.0,0.00017667,2]
[373403674,1752988232818,-460.0,0.00017667,2]
[373403675,1752988232828,-460.0,0.00017667,2]
[373403676,1752988232838,-244.88595795,0.00017667,2]
[373403677,1752988232848,-460.0,0.00017667,2]
[373403678,1752988232860,-460.0,0.00017667,2]
[373403679,1752988232870,-460.0,0.00017667,2]
[373403680,1752988232880,-461.08434697,0.00017667,2]
[373403681,1752988232890,-460.0,0.00017667,2]
[373403682,1752988232899,-460.0,0.00017667,2]
[373403683,1752988232909,-460.0,0.00017667,2]
[373403684,1752988232919,-460.0,0.00017667,2]
[373403685,1752988232929,-460.0,0.00017667,2]
[373403686,1752988232939,-460.0,0.00017667,2]
[373403687,1752988232948,-460.0,0.00017667,2]
[373403688,1752988232959,-460.0,0.00017667,2]
[373403689,1752988232968,-460.0,0.00017667,2]
[373403690,1752988232978,-460.0,0.00017667,2]
[373403691,1752988232988,-460.0,0.00017667,2]
[373403692,1752988232997,-437.76073033,0.00017667,2]
[373403693,1752988233007,-460.0,0.00017667,2]
[373403694,1752988233016,-500.0,0.00017667,2]
[373403695,1752988233028,-500.0,0.00017667,2]
[373403696,1752988233038,-460.0,0.00017667,2]
[373403697,1752988233048,-460.0,0.00017667,2]
[373403698,1752988233058,-460.0,0.00017667,2]
[373403699,1752988233069,-460.0,0.00017667,2]
[373403700,1752988233078,-260.0,0.00017667,2]
[373403701,1752988233089,-460.0,0.00017667,2]
[373403702,1752988233099,-460.0,0.00017667,2]
[373403703,1752988233109,-460.0,0.00017667,2]
[373403704,1752988233119,-506.64214284,0.00017667,2]
[373403705,1752988233130,-460.0,0.00017667,2]
[373403706,1752988233140,-460.0,0.00017667,2]
[373403707,1752988233150,-460.0,0.00017667,2]
[373403708,1752988233160,-461.63026959,0.00017667,2]
[373403709,1752988233171,-453.68746148,0.00017667,2]
[373403710,1752988233182,-460.0,0.00017667,2]
[373403711,1752988233191,-460.0,0.00017667,2]
[373403712,1752988233201,-557.56822474,0.00017667,2]
[373403713,1752988233211,-460.0,0.00017667,2]
[373403714,1752988233221,-460.0,0.00017667,2]
[373403715,1752988233231,-460.0,0.00017667,2]
[373403716,1752988233241,-460.0,0.00017667,2]
[373403717,1752988233251,-460.0,0.00017667,2]
[373403718,1752988233261,-156.13,0.00017667,2]
[373403719,1752988233271,-460.55347302,0.00017667,2]
[373403720,1752988233285,-460.0,0.00017667,2]
[373403721,1752988233298,-460.0,0.00017667,2]
[373403722,1752988233308,-460.0,0.00017667,2]
[373403723,1752988233318,-460.0,0.00017667,2]
[373403724,1752988233328,-460.0,0.00017667,2]
[373403725,1752988233339,-460.0,0.00017667,2]
[373403726,1752988233349,-341.50032126,0.00017667,2]
[373403727,1752988233359,-250.0,0.00017667,2]
[373403728,1752988233370,-500.0,0.00017667,2]
[373403729,1752988233379,-500.0,0.00017667,2]
[373403730,1752988233389,-460.0,0.00017667,2]
[373403731,1752988233399,-1541.51,0.00017667,2]
[373403732,1752988233409,-460.0,0.00017667,2]
[373403733,1752988233419,-460.0,0.00017667,2]
[373403734,1752988233429,-460.0,0.00017667,2]
[373403735,1752988233439,-517.18,0.00017667,2]
[373403736,1752988233448,-460.0,0.00017667,2]
[373403737,1752988233458,-460.0,0.00017667,2]
[373403738,1752988233468,-460.0,0.00017667,2]
[373403739,1752988233477,-460.0,0.00017667,2]
[373403740,1752988233487,-460.0,0.00017667,2]
[373403741,1752988233496,-1155.65,0.00017667,2]
[373403742,1752988233507,-402.70019992,0.00017667,2]
[373403743,1752988233516,-460.0,0.00017667,2]
[373403744,1752988233526,-460.0,0.00017667,2]
[373403745,1752988233536,-460.0,0.00017667,2]
[373403746,1752988233546,-460.0,0.00017667,2]
[373403747,1752988233556,-460.0,0.00017667,2]
[373403748,1752988233566,-460.0,0.00017667,2]
[373403749,1752988233582,-460.0,0.00017667,2]
[373403750,1752988233599,-460.0,0.00017667,2]
[373403751,1752988233609,-500.0,0.00017667,2]
[373403752,1752988233619,-460.0,0.00017667,2]
[373403753,1752988233628,-460.0,0.00017667,2]
[373403754,1752988233638,-500.0,0.00017667,2]
[373403755,1752988233648,-500.0,0.00017667,2]
[373403756,1752988233657,-460.0,0.00017667,2]
[373403757,1752988233668,-460.0,0.00017667,2]
[373403758,1752988233678,-460.0,0.00017667,2]
[373403759,1752988233689,-500.0,0.00017667,2]
[373403760,1752988233699,-460.0,0.00017667,2]
[373403761,1752988233709,-500.0,0.00017667,2]
[373403762,1752988233722,-460.0,0.00017667,2]
[373403763,1752988233743,-460.0,0.00017667,2]
[373403764,1752988233764,-460.0,0.00017667,2]
[373403765,1752988233774,-500.0,0.00017667,2]
[373403766,1752988233784,-500.0,0.00017667,2]
[373403767,1752988233794,-460.0,0.00017667,2]
[373403768,1752988233805,-916.2,0.00017667,2]
[373403769,1752988233815,-500.0,0.00017667,2]
[373403770,1752988233825,-500.0,0.00017667,2]
[373403771,1752988233835,-460.0,0.00017667,2]
[373403772,1752988233846,-1252.52960065,0.00017667,2]
[373403773,1752988233858,-15.5322068,0.00017667,2]
[373403774,1752988233886,-444.4677932,0.00017667,2]
[373403775,1752988233896,-294.55994405,0.00017668,2]
[373403780,1752988237939,-461.24116717,0.00017666,2]
[373403781,1752988237949,-460.0,0.00017666,2]
[373403782,1752988237958,-559.57,0.00017667,2]
[373403783,1752988237968,-500.0,0.00017667,2]
[373403784,1752988237977,-500.0,0.00017667,2]
[373403785,1752988237987,-205.44005595,0.00017668,2]
[373403786,1752988237996,-460.0,0.00017668,2]
[373403787,1752988238005,-460.0,0.00017668,2]
[373403788,1752988238015,-510.48468795,0.00017668,2]
[373403789,1752988238024,-460.0,0.00017668,2]
[373403790,1752988238033,-460.0,0.00017668,2]
[373403791,1752988238042,-460.0,0.00017668,2]
[373403792,1752988238052,-460.0,0.00017668,2]
[373403793,1752988238062,-465.27115641,0.00017668,2]
[373403794,1752988238072,-460.0,0.00017668,2]
[373403795,1752988238082,-462.36756959,0.00017668,2]
[373403796,1752988238092,-460.0,0.00017668,2]
[373403797,1752988238101,-460.0,0.00017668,2]
[373403798,1752988238112,-460.0,0.00017668,2]
[373403799,1752988238122,-460.0,0.00017668,2]
[373403800,1752988238131,-460.0,0.00017668,2]
[373403801,1752988238141,-461.86640655,0.00017668,2]
[373403802,1752988238150,-460.0,0.00017668,2]
[373403803,1752988238160,-460.0,0.00017668,2]
[373403804,1752988238169,-460.0,0.00017668,2]
[373403805,1752988238178,-444.33158871,0.00017668,2]
[373403806,1752988238190,-15.66841129,0.00017668,2]
[373403807,1752988238199,-460.0,0.00017668,2]
[373403808,1752988238209,-460.0,0.00017668,2]
[373403809,1752988238218,-460.0,0.00017668,2]
[373403810,1752988238227,-460.0,0.00017668,2]
[373403811,1752988238236,-460.0,0.00017668,2]
[373403812,1752988238245,-460.0,0.00017668,2]
[373403813,1752988238254,-460.0,0.00017668,2]
[373403814,1752988238263,-460.0,0.00017668,2]
[373403815,1752988238272,-460.0,0.00017668,2]
[373403816,1752988238281,-460.0,0.00017668,2]
[373403817,1752988238294,-462.30044154,0.00017668,2]
[373403818,1752988238304,-460.0,0.00017668,2]
[373403819,1752988238313,-460.0,0.00017668,2]
[373403820,1752988238323,-460.0,0.00017668,2]
[373403821,1752988238332,-461.72335912,0.00017668,2]
[373403822,1752988238341,-460.0,0.00017668,2]
[373403823,1752988238350,-184.23088602,0.00017668,2]
[373403824,1752988238371,-275.76911398,0.00017668,2]
[373403825,1752988238381,-460.0,0.00017668,2]
[373403826,1752988238390,-460.0,0.00017668,2]
[373403827,1752988238399,-460.0,0.00017668,2]
[373403828,1752988238409,-460.0,0.00017668,2]
[373403829,1752988238418,-460.0,0.00017668,2]
[373403830,1752988238427,-460.0,0.00017668,2]
[373403831,1752988238436,-461.20924833,0.00017668,2]
[373403832,1752988238446,-500.0,0.00017668,2]
[373403833,1752988238455,-500.0,0.00017668,2]
[373403834,1752988238464,-460.0,0.00017668,2]
[373403835,1752988238473,-460.0,0.00017668,2]
[373403836,1752988238483,-460.39453403,0.00017668,2]